bitfinex/quotes_ETHUSD_20250810
["timestamp","ask_amount","ask_price","bid_price","bid_amount"]
[1754789132789,0.002,4297.2,4295.7,0.001]
[1754789132790,0.002,4297.2,4296.7,0.21644277]
[1754789132960,0.002,4297.2,4296.8,0.21644277]
[1754789133160,0.002,4297.2,4296.9,0.21644277]
[1754789133355,0.002,4297.2,4297.0,0.21644277]
[1754789133691,0.002,4297.2,4297.1,0.21644277]
[1754789133987,3.674,4297.2,4297.1,0.21644277]
[1754789136074,0.002,4297.2,4297.1,0.21644277]
[1754789136277,0.002,4297.2,4297.1,2.54359363]
[1754789136574,0.002,4298.6,4297.9,2.32671769]
[1754789136775,0.002,4298.6,4297.9,2.54316046]
[1754789136976,0.002,4298.6,4297.9,0.21644277]
[1754789137407,0.002,4298.6,4297.9,2.54316046]
[1754789137783,0.002,4298.6,4297.9,0.21644277]
[1754789138207,3.671,4298.2,4297.9,0.21644277]
[1754789139385,3.671,4298.2,4297.9,2.54316046]
[1754789139584,0.118,4298.4,4297.9,2.81074651]
[1754789139785,3.672,4298.4,4297.9,2.65916046]
[1754789140420,3.788,4298.4,4297.9,0.33244277]
[1754789140907,3.788,4298.4,4297.9,2.65916046]
[1754789141881,0.002,4298.4,4297.9,2.65916046]
[1754789142698,1e-08,4298.0,4297.9,5.68242763]
[1754789142885,0.002,4298.6,4298.5,2.32639292]
[1754789142886,1e-08,4298.6,4298.5,2.32639292]
[1754789143086,0.002,4299.4,4299.2,2.32601414]
[1754789143318,0.002,4299.4,4299.2,12.48806039]
[1754789143527,0.002,4299.4,4299.2,12.50476039]
[1754789143838,0.002,4299.4,4299.2,12.59787039]
[1754789145007,0.002,4299.4,4299.2,12.50476039]
[1754789145895,0.002,4299.4,4299.2,2.67515691]
[1754789146400,1e-08,4299.7,4299.4,5.32588342]
[1754789146602,1e-08,4299.7,4299.6,2.44179774]
[1754789146801,1e-08,4299.7,4299.6,5.65824051]
[1754789147001,1e-08,4299.7,4299.6,9.32724051]
[1754789147590,1e-08,4299.7,4299.6,9.34394051]
[1754789149290,0.002,4300.2,4299.7,5.32574365]
[1754789149495,1e-08,4300.3,4300.2,2.32547323]
[1754789149800,1e-08,4300.3,4300.2,6.210916]
[1754789150018,1e-08,4300.3,4300.2,6.227616]
[1754789150418,1e-08,4300.3,4300.2,6.210916]
[1754789150695,1e-08,4300.3,4300.2,6.227616]
[1754789150916,1e-08,4300.3,4300.2,16.05721948]
[1754789151487,1e-08,4300.5,4300.4,2.32536508]
[1754789151726,1e-08,4300.5,4300.4,5.65780785]
[1754789151903,1e-08,4300.5,4300.4,5.55850785]
[1754789152098,1e-08,4300.5,4300.4,5.67450785]
[1754789152517,1e-08,4300.7,4300.6,2.32525694]
[1754789152689,1e-08,4300.7,4300.6,9.23295227]
[1754789152892,1e-08,4300.7,4300.6,9.22639971]
[1754789154593,1e-08,4300.7,4300.6,9.20969971]
[1754789155894,1e-08,4300.7,4300.6,5.54169971]
[1754789156095,1e-08,4300.7,4300.6,9.20869971]
[1754789159836,1e-08,4300.7,4300.6,9.22539971]
[1754789160037,1e-08,4300.7,4300.6,5.65769971]
[1754789160240,1e-08,4300.7,4300.6,9.32369971]
[1754789161540,1e-08,4300.7,4300.6,9.12395694]
[1754789162614,1e-08,4300.7,4300.6,9.10725694]
[1754789164343,0.91550001,4300.7,4300.6,6.10725694]
[1754789164516,0.91550001,4300.7,4300.6,2.44125694]
[1754789167012,0.91550001,4300.7,4300.6,0.116]
[1754789170511,0.91550001,4300.7,4300.6,2.44125694]
[1754789171627,0.91550001,4300.7,4300.6,0.116]
[1754789176652,2.325271,4300.6,4299.8,2.32568842]
[1754789176830,1.2395771,4300.5,4300.2,0.116]
[1754789177021,0.9155,4300.5,4300.2,0.116]
[1754789177226,0.9142,4300.4,4300.2,0.116]
[1754789177631,0.9142,4300.3,4300.2,0.116]
[1754789177973,3.23961915,4300.3,4300.2,0.116]
[1754789178133,0.9142,4300.3,4300.0,0.116]
[1754789178328,2.32543593,4300.3,4300.0,0.116]
[1754789178671,0.9142,4300.2,4300.0,0.116]
[1754789179166,2.32537176,4300.4,4300.0,0.116]
[1754789179373,0.9142,4300.1,4300.0,0.116]
[1754789182830,2.32558679,4300.0,4299.7,0.001]
[1754789183031,0.116,4299.8,4299.7,0.001]
[1754789183432,1.0302,4299.8,4299.7,0.001]
[1754789183870,3.35588956,4299.8,4299.7,0.001]
[1754789184026,3.37343546,4299.8,4299.7,0.001]
[1754789184232,7.84229125,4299.8,4299.7,0.001]
[1754789184932,11.50729125,4299.8,4299.7,0.001]
[1754789186464,11.50729125,4299.8,4299.7,1e-08]
[1754789186465,12.0068265,4299.8,4299.7,1e-08]
[1754789186635,3.55,4299.3,4298.7,0.001]
[1754789186828,6.55856004,4299.2,4298.7,0.001]
[1754789187064,12.30923741,4299.2,4298.7,0.001]
[1754789187433,11.80962261,4299.2,4298.7,0.001]
[1754789188060,12.30878398,4299.2,4298.7,0.001]
[1754789188264,22.13838746,4299.2,4299.1,1e-08]
[1754789188464,2.87623057,4298.8,4298.7,1e-08]
[1754789188666,6.71401408,4298.8,4298.7,1e-08]
[1754789188868,2.326362,4298.6,4298.3,1e-08]
[1754789189035,13.49560348,4298.4,4298.3,1e-08]
[1754789189236,23.35086614,4298.4,4298.3,1e-08]
[1754789189436,23.76625053,4298.4,4298.3,1e-08]
[1754789189633,26.08329121,4298.4,4298.3,1e-08]
[1754789190363,14.6092,4298.4,4298.3,1e-08]
[1754789190569,14.7252,4298.4,4298.3,1e-08]
[1754789190875,15.2752,4298.4,4298.3,1e-08]
[1754789191366,11.2689,4298.4,4298.3,1e-08]
[1754789191570,10.811,4298.4,4298.3,0.21472575]
[1754789191977,10.812,4298.4,4298.3,0.21472575]
[1754789192271,11.7262,4298.4,4298.3,0.21472575]
[1754789192875,19.62309617,4298.4,4298.3,0.21472575]
[1754789193078,13.63064912,4298.4,4298.3,1e-08]
[1754789193243,7.03,4298.4,4298.3,1e-08]
[1754789193437,7.03,4298.4,4298.3,0.2148303]
[1754789193677,7.4879,4298.4,4298.3,0.2148303]
[1754789194065,10.696,4298.4,4298.3,0.2148303]
[1754789194842,7.03,4298.4,4298.3,0.2148303]
[1754789195059,10.696,4298.4,4298.3,0.2148303]
[1754789195453,0.56987722,4298.5,4298.4,2.32644705]
[1754789195659,0.56987722,4298.5,4298.4,2.54127734]
[1754789196876,0.56987722,4298.5,4298.4,0.21483029]
[1754789197081,0.56987722,4298.5,4298.4,2.54127734]
[1754789199373,0.56987722,4298.5,4298.4,0.21483029]
[1754789199570,1.02777722,4298.5,4298.4,0.21483029]
[1754789200174,1.02777722,4298.5,4298.4,2.54127734]
[1754789200175,0.56987722,4298.5,4298.4,2.54127734]
[1754789200352,0.56987722,4298.5,4298.4,2.32644705]
[1754789200558,0.56987722,4298.5,4298.4,2.5415269]
[1754789202293,1e-08,4300.7,4298.5,2.32639292]
[1754789202456,1e-08,4300.7,4299.1,3.0]
[1754789202784,1e-08,4300.7,4300.4,2.32535158]
[1754789202957,1e-08,4300.7,4300.5,0.21507985]
[1754789203152,1e-08,4300.7,4300.6,0.21507985]
[1754789203757,0.45790001,4300.7,4300.6,0.21507985]
[1754789203962,1e-08,4300.7,4300.6,0.21507985]
[1754789204192,1e-08,4300.7,4300.6,2.54033679]
[1754789204687,1e-08,4300.7,4300.6,0.21507985]
[1754789205274,1e-08,4300.7,4300.6,0.33107985]
[1754789206370,1e-08,4300.7,4300.6,0.33091602]
[1754789207295,0.46260001,4300.7,4300.6,0.33091602]
[1754789208589,1e-08,4300.7,4300.6,0.33091602]
[1754789208797,0.46260001,4300.7,4300.6,0.33091602]
[1754789210898,1e-08,4300.7,4300.6,0.33091602]
[1754789211071,1e-08,4300.7,4300.6,2.65617296]
[1754789214781,1e-08,4300.7,4300.6,2.78897296]
[1754789216582,1e-08,4300.7,4300.6,2.65617296]
[1754789216980,1e-08,4300.7,4300.6,2.77227296]
[1754789217295,1e-08,4300.7,4300.6,2.78897296]
[1754789217898,1e-08,4300.7,4300.6,2.65617296]
[1754789219479,1e-08,4300.7,4300.6,2.78897296]
[1754789219875,1e-08,4300.7,4300.6,2.65617296]
[1754789220187,1e-08,4300.7,4300.6,6.31917296]
[1754789221170,1e-08,4301.1,4300.8,2.3251488]
[1754789221401,1e-08,4301.2,4301.1,5.32498663]
[1754789221573,1e-08,4301.2,4301.1,9.31890265]
[1754789221986,1e-08,4301.2,4301.1,9.33560265]
[1754789222196,1e-08,4301.2,4301.1,9.45170265]
[1754789222799,1e-08,4301.6,4301.5,2.32477042]
[1754789223000,1e-08,4301.6,4301.5,9.22593414]
[1754789223205,1e-08,4301.6,4301.5,9.45148644]
[1754789224002,1e-08,4301.6,4301.5,9.31868644]
[1754789224804,1e-08,4301.6,4301.5,5.65568644]
[1754789225032,1e-08,4301.6,4301.5,9.31768644]
[1754789226409,1e-08,4301.6,4301.5,6.31768644]
[1754789226631,0.46260001,4301.6,4301.5,2.65568644]
[1754789226832,0.91590001,4301.6,4301.5,6.31768644]
[1754789227036,0.91590001,4301.6,4301.5,2.65568644]
[1754789227236,0.91590001,4301.6,4301.5,6.31768644]
[1754789227708,0.91590001,4301.6,4301.5,0.33091602]
[1754789229416,0.91590001,4301.6,4301.5,0.21491602]
[1754789229638,3.24061639,4301.6,4301.5,0.21491602]
[1754789230446,6.24061639,4301.6,4301.5,0.21491602]
[1754789230753,6.79061639,4301.6,4301.5,0.21491602]
[1754789231811,2.32497104,4301.2,4300.4,0.116]
[1754789232023,0.116,4301.0,4300.5,0.21540039]
[1754789232225,0.9159,4300.9,4300.6,0.21540039]
[1754789232523,0.9159,4300.8,4300.7,0.21540039]
[1754789235629,0.9159,4301.2,4300.7,0.21540039]
[1754789235828,0.4626,4301.5,4300.8,0.21540039]
[1754789236057,0.4626,4301.2,4301.1,0.116]
[1754789236260,0.4626,4301.2,4301.1,0.33140039]
[1754789236451,0.9159,4301.2,4301.1,0.33140039]
[1754789236827,1.0319,4301.2,4301.1,0.21540039]
[1754789237737,3.46240001,4301.6,4301.1,0.21540039]
[1754789237937,3.46240001,4301.6,4301.2,0.21540039]
[1754789238139,0.917,4301.5,4301.3,0.21540039]
[1754789238341,0.917,4301.5,4301.4,0.21540039]
[1754789240754,0.917,4301.5,4301.4,0.21562243]
[1754789243655,0.917,4301.5,4301.4,0.21568276]
[1754789244337,3.79177042,4301.5,4301.4,0.21568276]
[1754789244538,4.41521022,4301.5,4301.4,0.21568276]
[1754789245339,1e-08,4301.6,4301.4,0.21568276]
[1754789245538,1e-08,4301.6,4301.5,0.21568276]
[1754789245938,0.91700001,4301.6,4301.5,0.21568276]
[1754789246140,1e-08,4301.6,4301.5,0.21568276]
[1754789246758,0.91700001,4301.6,4301.5,0.21568276]
[1754789247238,2.16341163,4301.6,4301.5,0.21568276]
[1754789247443,4.48812801,4301.6,4301.5,0.21568276]
[1754789247651,7.48812801,4301.6,4301.5,0.21568276]
[1754789252795,8.82441163,4301.6,4301.5,0.21568276]
[1754789253493,1e-08,4301.6,4301.5,0.21568276]
[1754789255577,1e-08,4301.6,4301.5,0.21572983]
[1754789257194,0.46240001,4301.6,4301.5,0.21572983]
[1754789257366,0.91700001,4301.6,4301.5,0.21572983]
[1754789257794,1e-08,4301.6,4301.5,0.21572983]
[1754789258466,1e-08,4301.6,4301.2,2.32492583]
[1754789258673,1e-08,4301.6,4301.3,0.21600876]
[1754789258868,1e-08,4301.6,4301.4,0.21600876]
[1754789259068,1e-08,4301.6,4301.5,0.21600876]
[1754789259564,2.09910722,4301.6,4301.5,0.21600876]
[1754789259767,2.08156132,4301.6,4301.5,0.21600876]
[1754789259966,4.4062777,4301.6,4301.5,0.21600876]
[1754789260589,2.87480892,4301.5,4300.6,2.44125318]
[1754789260788,0.116,4301.2,4300.7,0.21626411]
[1754789260986,3.66,4301.1,4300.8,0.21626411]
[1754789261198,4.1224,4301.1,4300.9,0.21626411]
[1754789261501,4.1224,4301.1,4301.0,0.21626411]
[1754789262404,4.577,4301.1,4301.0,0.21626411]
[1754789262918,6.90198663,4301.1,4301.0,0.21626411]
[1754789263080,8.38626876,4301.1,4301.0,0.21626411]
[1754789263278,4.693,4301.1,4301.0,0.21626411]
[1754789263599,3.775,4301.1,4301.0,0.21626411]
[1754789265281,3.775,4301.1,4301.0,2.54130479]
[1754789265475,3.659,4301.1,4301.0,2.54130479]
[1754789265680,3.659,4301.1,4301.0,0.21626411]
[1754789266872,0.116,4301.2,4301.0,0.21626411]
[1754789267092,0.116,4301.2,4301.1,0.21626411]
[1754789268684,0.116,4301.2,4301.1,2.54125074]
[1754789268884,0.116,4301.2,4301.1,0.21626411]
[1754789271180,0.116,4301.2,4301.1,2.54125074]
[1754789271492,10.688,4301.5,4301.1,2.54125074]
[1754789271690,10.688,4301.5,4301.2,0.21626411]
[1754789271910,10.688,4301.5,4301.3,0.21626411]
[1754789272214,10.688,4301.5,4301.4,0.21626411]
[1754789272215,11.1731,4301.5,4301.4,0.21626411]
[1754789272982,10.688,4301.5,4301.4,0.21626411]
[1754789273181,11.6423,4301.5,4301.4,0.21626411]
[1754789274203,4.1272,4301.5,4301.4,0.21626411]
[1754789274514,3.658,4301.5,4301.4,0.21626411]
[1754789277215,4.6123,4301.5,4301.4,0.21626411]
[1754789278298,5.31779118,4301.5,4301.4,0.21626411]
[1754789279018,7.6425616,4301.5,4301.4,0.21626411]
[1754789279313,5.31779118,4301.5,4301.4,0.21626411]
[1754789280291,4.6123,4301.5,4301.4,0.21626411]
[1754789284105,2.87485783,4301.4,4300.5,2.44130235]
[1754789284305,0.116,4301.2,4300.6,0.21655323]
[1754789284648,4.1252,4301.1,4300.7,0.21655323]
[1754789284802,0.9543,4301.0,4300.8,0.21655323]
[1754789285006,3.656,4300.9,4300.5,2.44130235]
[1754789285232,3.656,4300.9,4300.6,0.2165438]
[1754789285435,4.1252,4300.9,4300.7,0.2165438]
[1754789285744,4.1252,4300.9,4300.8,0.2165438]
[1754789286043,7.97557064,4300.9,4300.8,0.2165438]
[1754789286243,11.07402474,4300.9,4300.8,0.2165438]
[1754789286459,11.57569101,4300.9,4300.8,0.2165438]
[1754789289314,11.07402474,4300.9,4300.8,0.2165438]
[1754789289545,11.57487975,4300.9,4300.8,0.2165438]
[1754789290247,11.07402474,4300.9,4300.8,0.2165438]
[1754789290546,10.05139474,4300.9,4300.8,0.2165438]
[1754789291045,10.60139474,4300.9,4300.8,0.2165438]
[1754789291849,7.322,4300.9,4300.8,0.2165438]
[1754789292049,7.7912,4300.9,4300.8,0.2165438]
[1754789292218,8.2763,4300.9,4300.8,0.2165438]
[1754789292649,10.60139474,4300.9,4300.8,0.2165438]
[1754789292951,3.771,4300.9,4300.8,0.2165438]
[1754789294924,3.771,4300.9,4300.8,0.21585747]
[1754789297348,3.771,4300.9,4300.8,2.54100627]
[1754789297532,3.771,4300.9,4300.8,0.21585747]
[1754789299054,3.771,4300.9,4300.8,2.54100627]
[1754789299423,3.771,4300.9,4300.8,0.21585747]
[1754789300054,4.7085,4300.9,4300.8,0.21585747]
[1754789301947,4.7085,4300.9,4300.8,0.21602349]
[1754789302123,3.771,4300.9,4300.8,2.54117229]
[1754789302324,3.771,4300.9,4300.8,0.21602349]
[1754789302830,4.2413,4300.9,4300.8,0.21602349]
[1754789303855,4.7085,4300.9,4300.8,0.21602349]
[1754789304462,3.771,4300.9,4300.8,0.21602349]
[1754789304640,3.771,4300.9,4300.8,2.54117229]
[1754789305037,3.771,4300.9,4300.8,0.21602349]
[1754789306347,4.7085,4300.9,4300.8,0.21602349]
[1754789307337,3.771,4300.9,4300.8,2.54117229]
[1754789307856,3.771,4300.9,4300.8,0.21602349]
[1754789308030,3.771,4300.9,4300.8,2.54117229]
[1754789308229,1e-08,4301.6,4300.9,2.32509474]
[1754789308572,3.653,4301.5,4301.4,2.32482447]
[1754789308767,1e-08,4301.6,4301.4,0.21602349]
[1754789309073,1e-08,4301.6,4301.5,2.54079391]
[1754789310853,1e-08,4301.6,4301.5,2.65679391]
[1754789316551,1e-08,4301.6,4301.5,2.54079391]
[1754789316857,1e-08,4301.6,4301.5,2.67359391]
[1754789317057,1e-08,4301.6,4301.5,2.69684161]
[1754789317775,0.042,4301.9,4301.8,2.3246083]
[1754789317961,0.042,4301.9,4301.8,14.1332857]
[1754789318167,0.042,4301.9,4301.8,14.2660857]
[1754789318875,1e-08,4302.0,4301.9,2.32455426]
[1754789319075,1e-08,4302.0,4301.9,6.19057775]
[1754789319372,1e-08,4302.0,4301.9,14.26603166]
[1754789320160,1e-08,4302.0,4301.9,14.14993166]
[1754789320338,1e-08,4302.0,4301.9,14.26603166]
[1754789321170,1e-08,4302.0,4301.9,17.26603166]
[1754789321678,1e-08,4302.0,4301.9,9.19057775]
[1754789321873,1e-08,4302.0,4301.9,9.18957775]
[1754789322376,1e-08,4302.0,4301.9,9.32237775]
[1754789322776,1e-08,4302.0,4301.9,9.18957775]
[1754789323081,1e-08,4302.0,4301.9,9.18880194]
[1754789323873,1e-08,4302.0,4301.9,9.28185194]
[1754789324485,1e-08,4302.0,4301.9,5.63285194]
[1754789324695,1e-08,4302.0,4301.9,9.28085194]
[1754789326295,1e-08,4302.0,4301.9,5.63285194]
[1754789326497,0.93750001,4302.0,4301.9,6.28085194]
[1754789326798,0.93750001,4302.0,4301.9,6.30380194]
[1754789327567,0.93750001,4302.0,4301.9,2.65580194]
[1754789328400,1e-08,4302.0,4301.9,2.65580194]
[1754789328986,1e-08,4302.0,4301.9,6.30280194]
[1754789329269,0.93400001,4302.0,4301.9,0.33124768]
[1754789329599,0.93400001,4302.0,4301.9,0.21524768]
[1754789329811,1.27164041,4302.0,4301.9,0.21524768]
[1754789329982,0.93400001,4302.0,4301.9,0.21524768]
[1754789330295,0.93400001,4302.0,4301.5,0.001]
[1754789330489,0.116,4301.8,4301.5,0.001]
[1754789330872,0.934,4301.7,4301.5,0.001]
[1754789331271,0.934,4301.6,4301.5,0.001]
[1754789332802,0.934,4301.6,4301.5,2.32577042]
[1754789333372,0.934,4301.6,4301.5,0.001]
[1754789333575,0.934,4301.6,4301.5,2.32577042]
[1754789334197,0.934,4301.6,4301.5,0.001]
[1754789335286,0.934,4301.6,4301.5,2.32577042]
[1754789335902,0.934,4301.6,4301.5,0.001]
[1754789341682,3.25871638,4301.6,4301.5,0.001]
[1754789341882,1.27147164,4301.6,4301.5,0.001]
[1754789342115,1.27147164,4301.6,4301.5,0.21691774]
[1754789342909,3.59618802,4301.6,4301.5,0.21691774]
[1754789343114,4.14618802,4301.6,4301.5,0.21690039]
[1754789343410,4.14618802,4301.6,4300.6,0.117]
[1754789343411,2.32493619,4301.2,4300.6,0.117]
[1754789343614,3.7785459,4301.1,4300.6,0.117]
[1754789343801,4.7125459,4301.1,4300.6,0.117]
[1754789344005,0.934,4301.0,4300.6,0.117]
[1754789344318,2.87510272,4300.9,4300.6,0.117]
[1754789344516,0.75701027,4300.8,4300.6,0.001]
[1754789344817,0.116,4300.7,4300.6,0.001]
[1754789345009,1.05,4300.7,4300.6,0.001]
[1754789345414,3.92520287,4300.7,4300.6,0.001]
[1754789345617,6.92520287,4300.7,4300.6,0.001]
[1754789345797,8.72195503,4300.7,4300.6,0.001]
[1754789346328,12.36595503,4300.7,4300.6,0.001]
[1754789349851,2.32547323,4300.2,4300.1,0.001]
[1754789350016,17.46212714,4300.2,4300.1,0.001]
[1754789350215,18.39612714,4300.2,4300.1,1e-08]
[1754789350417,20.46827879,4300.2,4300.1,1e-08]
[1754789350820,20.58427879,4300.2,4300.1,1e-08]
[1754789354103,16.94027879,4300.2,4300.1,1e-08]
[1754789354431,20.58427879,4300.2,4300.1,1e-08]
[1754789355202,12.64162488,4300.2,4300.1,1e-08]
[1754789355397,11.97562488,4300.2,4300.1,1e-08]
[1754789355634,12.09162488,4300.2,4300.1,1e-08]
[1754789355934,12.64162488,4300.2,4300.1,1e-08]
[1754789356333,20.58427879,4300.2,4300.1,1e-08]
[1754789356635,12.64162488,4300.2,4300.1,1e-08]
[1754789358912,27.61427879,4300.2,4300.1,1e-08]
[1754789359433,19.67162488,4300.2,4300.1,1e-08]
[1754789360240,15.09362488,4300.2,4300.1,1e-08]
[1754789360428,18.73662488,4300.2,4300.1,1e-08]
[1754789360626,19.66192488,4300.2,4300.1,1e-08]
[1754789361144,19.19572488,4300.2,4300.1,1e-08]
[1754789361348,19.66192488,4300.2,4300.1,1e-08]
[1754789362018,19.19572488,4300.2,4300.1,1e-08]
[1754789362449,19.66192488,4300.2,4300.1,1e-08]
[1754789368534,28.10387621,4300.2,4300.1,1e-08]
[1754789370859,20.1592223,4300.2,4300.1,1e-08]
[1754789372253,20.1612223,4300.2,4300.1,1e-08]
[1754789372428,20.37843847,4300.2,4300.1,1e-08]
[1754789374255,21.21532282,4300.2,4300.1,1e-08]
[1754789375176,20.37843847,4300.2,4300.1,1e-08]
[1754789375840,21.21404449,4300.2,4300.1,0.21656769]
[1754789376180,17.57304449,4300.2,4300.1,0.21656769]
[1754789376472,19.91223847,4300.2,4300.1,0.21656769]
[1754789376772,20.37843847,4300.2,4300.1,0.21656769]
[1754789377943,21.21428101,4300.2,4300.1,0.21656769]
[1754789378644,16.86307334,4300.2,4300.1,1e-08]
[1754789378843,19.86307334,4300.2,4300.1,0.21670758]
[1754789379241,20.32217334,4300.2,4300.1,0.21670758]
[1754789380347,19.86307334,4300.2,4300.1,0.21670758]
[1754789380572,19.2359223,4300.2,4300.1,0.21670758]
[1754789380947,19.86307334,4300.2,4300.1,0.21670758]
[1754789381278,19.2359223,4300.2,4300.1,0.21670758]
[1754789382948,19.6950223,4300.2,4300.1,0.21670758]
[1754789383879,20.78837334,4300.2,4300.1,0.21670758]
[1754789384184,20.1612223,4300.2,4300.1,0.21670758]
[1754789386262,20.3790428,4300.2,4300.1,0.21670758]
[1754789387084,20.0781215,4300.2,4300.1,0.21670758]
[1754789387658,16.4401215,4300.2,4300.1,0.21670758]
[1754789387869,17.16077065,4300.2,4300.1,0.21670758]
[1754789389682,16.66147323,4300.2,4300.1,0.21670758]
[1754789389888,17.16326927,4300.2,4300.1,0.21670758]
[1754789391674,16.66147323,4300.2,4300.1,0.21670758]
[1754789392791,18.0595988,4300.2,4300.1,0.21670758]
[1754789393098,20.37663948,4300.2,4300.1,0.21670758]
[1754789394356,20.5944152,4300.2,4300.1,0.21670758]
[1754789394577,21.2217939,4300.2,4300.1,0.21670758]
[1754789395456,21.2217939,4300.2,4300.1,1e-08]
[1754789395661,21.2217939,4300.2,4299.9,0.001]
[1754789395662,5.87558139,4300.0,4299.9,1e-08]
[1754789395853,21.11801222,4300.0,4299.9,1e-08]
[1754789396055,21.11801222,4300.0,4298.5,0.232]
[1754789396056,0.55,4299.8,4298.3,1e-08]
[1754789396286,13.81861395,4299.3,4298.3,1e-08]
[1754789396594,18.41793292,4299.3,4298.3,1e-08]
[1754789396894,19.31433292,4299.3,4298.3,1e-08]
[1754789397102,21.54107748,4299.3,4298.3,1e-08]
[1754789397298,0.55,4298.9,4298.3,1e-08]
[1754789397499,7.301,4298.9,4298.3,1e-08]
[1754789397657,9.62717646,4298.9,4298.3,1e-08]
[1754789398477,9.62717646,4298.9,4298.5,0.232]
[1754789399072,9.62717646,4298.9,4298.8,0.566]
[1754789399073,3.751,4298.9,4298.8,0.566]
[1754789399411,9.07717646,4298.9,4298.8,0.001]
[1754789399581,9.62717646,4298.9,4298.8,0.001]
[1754789400394,19.20645731,4298.9,4298.8,0.001]
[1754789400576,10.8225034,4298.9,4298.8,0.001]
[1754789400780,7.1875034,4298.9,4298.8,0.001]
[1754789400971,9.62717646,4298.9,4298.8,0.001]
[1754789401488,3.751,4298.9,4298.8,0.001]
[1754789401691,3.751,4298.9,4298.8,0.566]
[1754789402209,6.07717646,4298.9,4298.8,0.001]
[1754789402430,6.82183616,4298.9,4298.8,0.001]
[1754789402565,7.37183616,4298.9,4298.8,0.001]
[1754789402763,4.301,4298.9,4298.8,0.001]
[1754789402992,0.666,4298.9,4298.8,0.001]
[1754789403181,4.301,4298.9,4298.8,0.001]
[1754789403368,3.75,4298.9,4298.8,0.566]
[1754789404178,0.116,4298.9,4298.8,0.566]
[1754789404378,3.75,4298.9,4298.8,0.566]
[1754789406086,3.634,4299.0,4298.8,0.566]
[1754789406288,3.634,4299.0,4298.9,0.565]
[1754789406706,0.116,4299.2,4298.9,0.565]
[1754789407014,3.634,4299.1,4298.8,0.001]
[1754789407576,3.634,4299.1,4298.9,0.21658336]
[1754789407782,3.634,4299.1,4299.0,0.21658336]
[1754789408426,3.633,4299.1,4299.0,0.78158336]
[1754789411022,3.633,4299.1,4299.0,0.21658336]
[1754789411233,3.633,4299.1,4299.0,0.78158336]
[1754789412494,3.633,4299.1,4299.0,0.21658336]
[1754789414830,5.95906824,4299.1,4299.0,0.21658336]
[1754789415950,7.40546824,4299.1,4299.0,0.21658336]
[1754789416102,2.32617646,4298.9,4298.8,0.001]
[1754789416305,6.07417646,4298.9,4298.8,0.21758373]
[1754789416638,9.97057646,4298.9,4298.8,0.21758373]
[1754789416816,10.52057646,4298.9,4298.8,0.21758373]
[1754789417001,11.90371541,4298.9,4298.8,0.21758373]
[1754789417814,19.84636932,4298.9,4298.8,0.21758373]
[1754789418608,11.90371541,4298.9,4298.8,0.21758373]
[1754789419210,11.90371541,4298.9,4298.8,0.21761388]
[1754789420038,5.32617646,4298.9,4298.8,0.21761388]
[1754789420339,12.58037646,4298.9,4298.8,1e-08]
[1754789420540,2.87628469,4298.7,4298.6,0.04]
[1754789420720,6.52483059,4298.7,4298.6,0.04]
[1754789420919,8.9569054,4298.7,4298.6,0.04]
[1754789421403,5.3259054,4298.7,4298.6,0.04]
[1754789421744,8.9569054,4298.7,4298.6,0.04]
[1754789423937,9.50728469,4298.7,4298.6,0.04]
[1754789426314,7.181,4298.7,4298.6,0.04]
[1754789427013,7.18,4298.7,4298.6,0.04]
[1754789431749,10.46348469,4298.7,4298.6,0.04]
[1754789432736,25.4361386,4298.7,4298.6,0.04]
[1754789432939,27.75317928,4298.7,4298.6,0.04]
[1754789433120,19.81052537,4298.7,4298.6,0.04]
[1754789433547,15.22332537,4298.7,4298.6,0.04]
[1754789433748,19.80952537,4298.7,4298.6,0.04]
[1754789437750,19.80952537,4298.7,4298.6,0.041]
[1754789439757,18.85132537,4298.7,4298.6,0.041]
[1754789440234,14.208,4298.7,4298.6,0.041]
[1754789440430,10.658,4298.7,4298.6,0.041]
[1754789440658,10.774,4298.7,4298.6,0.041]
[1754789440824,14.324,4298.7,4298.6,0.041]
[1754789441022,10.146,4298.7,4298.6,0.041]
[1754789441227,13.774,4298.7,4298.6,0.041]
[1754789441738,0.116,4298.7,4298.6,0.606]
[1754789442059,3.628,4298.7,4298.6,0.041]
[1754789442429,3.628,4298.7,4298.6,2.9323388]
[1754789442628,3.628,4298.7,4298.6,3.0483388]
[1754789444063,3.628,4298.7,4298.6,0.722]
[1754789444980,3.628,4298.7,4298.6,3.0483388]
[1754789445347,2.0,4298.9,4298.8,2.32623057]
[1754789445546,5.627,4298.9,4298.8,2.89123057]
[1754789445766,2.0,4298.9,4298.8,2.32623057]
[1754789446073,2.0,4298.9,4298.8,10.94988448]
[1754789448873,2.0,4298.9,4298.8,2.44223057]
[1754789449065,5.626,4298.9,4298.8,2.44223057]
[1754789449441,2.0,4298.9,4298.8,2.44223057]
[1754789449637,2.0,4298.9,4298.8,2.46549287]
[1754789449963,2.0,4298.9,4298.8,3.00723057]
[1754789450468,2.0,4298.9,4298.8,2.44223057]
[1754789450676,2.0,4298.9,4298.8,3.00723057]
[1754789452046,2.0,4298.9,4298.8,2.44223057]
[1754789452987,6.0631,4298.9,4298.6,0.041]
[1754789453151,6.522,4298.9,4298.6,0.157]
[1754789453782,6.522,4298.9,4298.6,2.48333659]
[1754789454153,6.522,4298.9,4298.6,0.157]
[1754789455260,6.522,4298.9,4298.6,2.48333775]
[1754789455486,6.522,4298.9,4298.6,0.157]
[1754789455890,6.0839,4298.9,4298.6,0.157]
[1754789456051,6.522,4298.9,4298.6,0.157]
[1754789456449,6.0839,4298.9,4298.6,0.157]
[1754789456651,0.4381,4298.8,4298.6,0.157]
[1754789456880,3.624,4298.7,4298.6,0.157]
[1754789457471,4.0621,4298.7,4298.6,0.157]
[1754789460370,4.0621,4298.7,4298.6,2.4833388]